[Event "Late-Titled-Tuesday-Blitz-May-07-2024"]
[Site "Chess.com"]
[Date "2024.05.07"]
[Round "6"]
[White "tolimachess"]
[Black "PawnEatingZombie"]
[Result "0-1"]
[WhiteElo "2409"]
[BlackElo "2266"]
[TimeControl "180+1"]
[EndTime "15:06:14 PDT"]
[Termination "PawnEatingZombie won by checkmate"]

1. e4 {[%clk 0:02:56.8]} 1... c5 {[%clk 0:02:59.5]} 2. Nf3 {[%clk 0:02:53.5]}
2... Nc6 {[%clk 0:02:59.6]} 3. d4 {[%clk 0:02:53.1]} 3... cxd4 {[%clk
0:03:00.5]} 4. Nxd4 {[%clk 0:02:53.6]} 4... e5 {[%clk 0:03:00.7]} 5. Nb5 {[%clk
0:02:52.4]} 5... d6 {[%clk 0:03:01.1]} 6. c4 {[%clk 0:02:47.1]} 6... Be6 {[%clk
0:03:00.2]} 7. N1c3 {[%clk 0:02:47.1]} 7... a6 {[%clk 0:03:00.1]} 8. Na3 {[%clk
0:02:47.1]} 8... Nf6 {[%clk 0:02:58]} 9. Be2 {[%clk 0:02:45.8]} 9... g6 {[%clk
0:02:56.9]} 10. h4 {[%clk 0:02:41.7]} 10... h5 {[%clk 0:02:54.3]} 11. O-O {[%clk
0:02:40.8]} 11... Bg7 {[%clk 0:02:53.8]} 12. Nc2 {[%clk 0:02:41.1]} 12... O-O
{[%clk 0:02:47.4]} 13. b4 {[%clk 0:02:41.4]} 13... Rc8 {[%clk 0:02:44.2]} 14.
Be3 {[%clk 0:02:40.1]} 14... Ng4 {[%clk 0:02:31.7]} 15. Bg5 {[%clk 0:02:38.3]}
15... f6 {[%clk 0:02:23.8]} 16. Bd2 {[%clk 0:02:35.6]} 16... Nd4 {[%clk
0:02:01.9]} 17. Nd5 {[%clk 0:02:22.8]} 17... Bxd5 {[%clk 0:01:52.5]} 18. exd5
{[%clk 0:02:11.7]} 18... Nxe2+ {[%clk 0:01:50.6]} 19. Qxe2 {[%clk 0:02:09.8]}
19... f5 {[%clk 0:01:37.8]} 20. f3 {[%clk 0:02:02.8]} 20... Qxh4 {[%clk
0:01:18.7]} 21. fxg4 {[%clk 0:02:00.8]} 21... hxg4 {[%clk 0:01:19.6]} 22. Ne1
{[%clk 0:01:48.9]} 22... e4 {[%clk 0:01:16.1]} 23. g3 {[%clk 0:01:31.4]} 23...
Qxg3+ {[%clk 0:01:09.3]} 24. Qg2 {[%clk 0:01:21.8]} 24... Bd4+ {[%clk
0:01:02.4]} 25. Kh1 {[%clk 0:01:20.7]} 25... Qh4+ {[%clk 0:01:01.7]} 26. Qh2
{[%clk 0:01:20.8]} 26... Qxh2+ {[%clk 0:01:00.7]} 27. Kxh2 {[%clk 0:01:21.7]}
27... Bxa1 {[%clk 0:01:01]} 28. Ng2 {[%clk 0:01:20.7]} 28... Be5+ {[%clk
0:01:00.2]} 29. Bf4 {[%clk 0:01:20.1]} 29... Rxc4 {[%clk 0:00:52]} 30. Bxe5
{[%clk 0:01:16.9]} 30... dxe5 {[%clk 0:00:52.9]} 31. Rd1 {[%clk 0:01:17.1]}
31... Rd8 {[%clk 0:00:48.8]} 32. d6 {[%clk 0:01:14.2]} 32... Rc6 {[%clk
0:00:46.3]} 33. Rd5 {[%clk 0:01:13]} 33... Rcxd6 {[%clk 0:00:43.6]} 34. Rxe5
{[%clk 0:01:13.2]} 34... Kf7 {[%clk 0:00:41.5]} 35. Nf4 {[%clk 0:01:11.1]} 35...
Rd2+ {[%clk 0:00:40.2]} 36. Kg3 {[%clk 0:01:09.8]} 36... R8d3+ {[%clk
0:00:35.4]} 37. Kh4 {[%clk 0:01:08.9]} 37... g3 {[%clk 0:00:28.7]} 38. Re6
{[%clk 0:01:01.8]} 38... Rh2+ {[%clk 0:00:23.7]} 39. Kg5 {[%clk 0:01:00.5]}
39... g2 {[%clk 0:00:22.8]} 40. Rf6+ {[%clk 0:00:58]} 40... Ke8 {[%clk
0:00:19.5]} 41. Kxg6 {[%clk 0:00:56.8]} 41... g1=Q+ {[%clk 0:00:19.1]} 42. Kxf5
{[%clk 0:00:57.4]} 42... Rf3 {[%clk 0:00:14.8]} 43. Ke5 {[%clk 0:00:51.3]} 43...
Rxf4 {[%clk 0:00:14.3]} 44. Rxf4 {[%clk 0:00:52.2]} 44... e3 {[%clk 0:00:13.7]}
45. Rc4 {[%clk 0:00:49.6]} 45... e2 {[%clk 0:00:13.3]} 46. Kf6 {[%clk
0:00:49.5]} 46... e1=Q {[%clk 0:00:11.3]} 47. Rc8+ {[%clk 0:00:50]} 47... Kd7
{[%clk 0:00:10.9]} 48. b5 {[%clk 0:00:49.7]} 48... Qgf1+ {[%clk 0:00:09.7]} 49.
Kg7 {[%clk 0:00:49.6]} 49... Qg3# {[%clk 0:00:09.8]} 0-1

[Event "Late-Titled-Tuesday-Blitz-May-07-2024"]
[Site "Chess.com"]
[Date "2024.05.07"]
[Round "6"]
[White "kalxandria"]
[Black "stregachess"]
[Result "1-0"]
[WhiteElo "2233"]
[BlackElo "2014"]
[TimeControl "180+1"]
[EndTime "15:06:14 PDT"]
[Termination "kalxandria won on time"]

1. e4 {[%clk 0:03:00.9]} 1... c5 {[%clk 0:02:59.4]} 2. Nf3 {[%clk 0:03:00.2]}
2... d6 {[%clk 0:02:58.7]} 3. d4 {[%clk 0:03:00.3]} 3... cxd4 {[%clk 0:02:58.8]}
4. Nxd4 {[%clk 0:03:01.2]} 4... Nf6 {[%clk 0:02:58.5]} 5. Nc3 {[%clk 0:03:01.2]}
5... g6 {[%clk 0:02:58.5]} 6. Be3 {[%clk 0:03:00]} 6... Bg7 {[%clk 0:02:58.5]}
7. f3 {[%clk 0:03:00.3]} 7... O-O {[%clk 0:02:58.6]} 8. Qd2 {[%clk 0:03:00.5]}
8... Nc6 {[%clk 0:02:58.6]} 9. g4 {[%clk 0:03:00.1]} 9... Bxg4 {[%clk
0:02:54.9]} 10. fxg4 {[%clk 0:02:58.7]} 10... Nxg4 {[%clk 0:02:54.9]} 11. Nb3
{[%clk 0:02:28.9]} 11... h5 {[%clk 0:02:49.3]} 12. Be2 {[%clk 0:02:19.5]} 12...
Nxe3 {[%clk 0:02:48.7]} 13. Qxe3 {[%clk 0:02:19]} 13... Rc8 {[%clk 0:02:39.4]}
14. O-O-O {[%clk 0:02:16]} 14... Kh7 {[%clk 0:02:38.7]} 15. Kb1 {[%clk
0:02:15.5]} 15... Ne5 {[%clk 0:02:38.5]} 16. Nd5 {[%clk 0:02:09.6]} 16... Nc4
{[%clk 0:02:29.9]} 17. Bxc4 {[%clk 0:02:07.3]} 17... Rxc4 {[%clk 0:02:29.6]} 18.
Qxa7 {[%clk 0:01:56.2]} 18... Rxe4 {[%clk 0:02:18]} 19. Qxb7 {[%clk 0:01:54.5]}
19... e6 {[%clk 0:02:13]} 20. Nc3 {[%clk 0:01:43.1]} 20... Rc4 {[%clk
0:02:00.2]} 21. Rd3 {[%clk 0:01:40.8]} 21... Qf6 {[%clk 0:01:53.2]} 22. a4
{[%clk 0:01:29.7]} 22... Rfc8 {[%clk 0:00:58.8]} 23. Nd2 {[%clk 0:01:10.4]}
23... Rxc3 {[%clk 0:00:51.9]} 24. Ne4 {[%clk 0:00:55.8]} 24... Rxc2 {[%clk
0:00:32.9]} 25. Nxf6+ {[%clk 0:00:55]} 25... Bxf6 {[%clk 0:00:32.7]} 26. Rb3
{[%clk 0:00:53.5]} 26... R8c7 {[%clk 0:00:27.7]} 27. Qf3 {[%clk 0:00:50.8]}
27... Bg7 {[%clk 0:00:23.4]} 28. a5 {[%clk 0:00:50.5]} 28... d5 {[%clk
0:00:16.6]} 29. a6 {[%clk 0:00:49.6]} 29... R2c4 {[%clk 0:00:15.4]} 30. Rb7
{[%clk 0:00:39.1]} 30... Rxb7 {[%clk 0:00:03.6]} 31. axb7 {[%clk 0:00:40]} 31...
Rb4 {[%clk 0:00:03.9]} 32. b3 {[%clk 0:00:40.5]} 32... Rxb7 {[%clk 0:00:03.2]}
33. Rc1 {[%clk 0:00:39.7]} 33... Re7 {[%clk 0:00:02.7]} 34. Rc6 {[%clk
0:00:35.6]} 34... d4 {[%clk 0:00:02.4]} 35. Kc2 {[%clk 0:00:34.1]} 35... e5
{[%clk 0:00:01.9]} 36. Qe4 {[%clk 0:00:31.3]} 1-0

[Event "Late-Titled-Tuesday-Blitz-May-07-2024"]
[Site "Chess.com"]
[Date "2024.05.07"]
[Round "6"]
[White "Licancabur"]
[Black "NCchamp"]
[Result "1-0"]
[WhiteElo "2492"]
[BlackElo "2266"]
[TimeControl "180+1"]
[EndTime "15:06:15 PDT"]
[Termination "Licancabur won on time"]

1. f4 {[%clk 0:03:00.9]} 1... d5 {[%clk 0:02:59.2]} 2. Nf3 {[%clk 0:03:00.2]}
2... g6 {[%clk 0:02:59.5]} 3. g3 {[%clk 0:02:57.7]} 3... Bg7 {[%clk 0:02:59.7]}
4. Bg2 {[%clk 0:02:58.4]} 4... Nf6 {[%clk 0:02:58.8]} 5. O-O {[%clk 0:02:59]}
5... O-O {[%clk 0:02:58.4]} 6. d3 {[%clk 0:02:59.5]} 6... c5 {[%clk 0:02:57.3]}
7. Nc3 {[%clk 0:02:58.7]} 7... Nc6 {[%clk 0:02:57.1]} 8. e4 {[%clk 0:02:57.4]}
8... d4 {[%clk 0:02:16.8]} 9. Ne2 {[%clk 0:02:56.5]} 9... Qc7 {[%clk 0:02:14.1]}
10. h3 {[%clk 0:02:47.7]} 10... Rd8 {[%clk 0:02:13.3]} 11. g4 {[%clk 0:02:45.2]}
11... b5 {[%clk 0:02:12.3]} 12. a4 {[%clk 0:02:43.3]} 12... bxa4 {[%clk
0:01:56]} 13. Rxa4 {[%clk 0:02:41.7]} 13... Bb7 {[%clk 0:01:47.3]} 14. Bd2
{[%clk 0:02:32.4]} 14... a5 {[%clk 0:01:35.7]} 15. Be1 {[%clk 0:02:11]} 15...
Nb4 {[%clk 0:01:34.5]} 16. Nd2 {[%clk 0:02:06]} 16... Bc6 {[%clk 0:01:23.6]} 17.
Ra3 {[%clk 0:01:58.5]} 17... Bb5 {[%clk 0:01:23.3]} 18. Bg3 {[%clk 0:01:43]}
18... Qb6 {[%clk 0:01:14.9]} 19. f5 {[%clk 0:01:37.1]} 19... Rac8 {[%clk
0:01:04.7]} 20. b3 {[%clk 0:01:31.9]} 20... Nd7 {[%clk 0:01:00.5]} 21. Nf3
{[%clk 0:01:19]} 21... e5 {[%clk 0:00:53.7]} 22. Qd2 {[%clk 0:01:11]} 22... f6
{[%clk 0:00:52.3]} 23. g5 {[%clk 0:01:05.8]} 23... gxf5 {[%clk 0:00:47.2]} 24.
exf5 {[%clk 0:01:04]} 24... Nf8 {[%clk 0:00:26.7]} 25. Bh4 {[%clk 0:00:59.8]}
25... Rd6 {[%clk 0:00:13.2]} 26. Ng3 {[%clk 0:00:59.3]} 26... Nd5 {[%clk
0:00:11.4]} 27. Ne4 {[%clk 0:00:57.3]} 27... Rdc6 {[%clk 0:00:11.1]} 28. Qxa5
{[%clk 0:00:44.2]} 28... fxg5 {[%clk 0:00:06.2]} 29. Nfxg5 {[%clk 0:00:41.6]}
29... Ne3 {[%clk 0:00:03.8]} 30. Rf2 {[%clk 0:00:38]} 30... Qxa5 {[%clk
0:00:03.6]} 31. Rxa5 {[%clk 0:00:37.6]} 31... Bh6 {[%clk 0:00:01.4]} 32. Rxb5
{[%clk 0:00:35.6]} 32... Nd7 {[%clk 0:00:00.2]} 33. Ne6 {[%clk 0:00:33.7]} 33...
Nf6 {[%clk 0:00:01.1]} 34. Nxf6+ {[%clk 0:00:32.9]} 34... Kh8 {[%clk 0:00:00.3]}
35. Nd7 {[%clk 0:00:31.8]} 1-0

[Event "Late-Titled-Tuesday-Blitz-May-07-2024"]
[Site "Chess.com"]
[Date "2024.05.07"]
[Round "6"]
[White "nabukatnezarr"]
[Black "Onthequiet"]
[Result "1-0"]
[WhiteElo "2592"]
[BlackElo "2393"]
[TimeControl "180+1"]
[EndTime "15:06:17 PDT"]
[Termination "nabukatnezarr won by resignation"]

1. e4 {[%clk 0:03:00.9]} 1... c6 {[%clk 0:02:59.6]} 2. Nc3 {[%clk 0:03:00.2]}
2... d5 {[%clk 0:03:00]} 3. Nf3 {[%clk 0:03:01]} 3... dxe4 {[%clk 0:02:59.9]} 4.
Nxe4 {[%clk 0:03:01.9]} 4... Nf6 {[%clk 0:03:00.5]} 5. Bd3 {[%clk 0:02:55.8]}
5... Bg4 {[%clk 0:02:59.1]} 6. h3 {[%clk 0:02:54]} 6... Bxf3 {[%clk 0:02:58.4]}
7. Qxf3 {[%clk 0:02:54.9]} 7... Nbd7 {[%clk 0:02:57.1]} 8. Nxf6+ {[%clk
0:02:51.1]} 8... Nxf6 {[%clk 0:02:55.7]} 9. O-O {[%clk 0:02:49.8]} 9... g6
{[%clk 0:02:55.2]} 10. c3 {[%clk 0:02:47.2]} 10... Bg7 {[%clk 0:02:55.2]} 11.
Bc2 {[%clk 0:02:47.8]} 11... O-O {[%clk 0:02:55.3]} 12. d4 {[%clk 0:02:48.4]}
12... Qd5 {[%clk 0:02:53.3]} 13. Qxd5 {[%clk 0:02:40.3]} 13... cxd5 {[%clk
0:02:53.1]} 14. Re1 {[%clk 0:02:40.8]} 14... e6 {[%clk 0:02:53.1]} 15. Bf4
{[%clk 0:02:40.3]} 15... Rfc8 {[%clk 0:02:52.3]} 16. a4 {[%clk 0:02:40.1]} 16...
b6 {[%clk 0:02:51]} 17. Bd3 {[%clk 0:02:39.3]} 17... a6 {[%clk 0:02:50.1]} 18.
f3 {[%clk 0:02:34.9]} 18... Ne8 {[%clk 0:02:44.7]} 19. Kf2 {[%clk 0:02:30.8]}
19... Bf8 {[%clk 0:02:42.8]} 20. g4 {[%clk 0:02:05.3]} 20... Nd6 {[%clk
0:02:42.6]} 21. h4 {[%clk 0:02:03.5]} 21... Nc4 {[%clk 0:02:42.5]} 22. Ra2
{[%clk 0:01:58.1]} 22... Bd6 {[%clk 0:02:38.9]} 23. Bh6 {[%clk 0:01:38.8]} 23...
Be7 {[%clk 0:02:26]} 24. Kg3 {[%clk 0:01:37.3]} 24... Bd6+ {[%clk 0:02:01.6]}
25. Kh3 {[%clk 0:01:30.1]} 25... Bf8 {[%clk 0:01:52.5]} 26. Bg5 {[%clk
0:01:28.7]} 26... Kg7 {[%clk 0:01:48.5]} 27. Rea1 {[%clk 0:01:21.1]} 27... h6
{[%clk 0:01:47.1]} 28. Bf4 {[%clk 0:01:12.3]} 28... Bd6 {[%clk 0:01:45.1]} 29.
Bxc4 {[%clk 0:01:08.6]} 29... Bxf4 {[%clk 0:01:43.8]} 30. Bd3 {[%clk 0:01:08.6]}
30... f6 {[%clk 0:01:21]} 31. Re1 {[%clk 0:01:07.7]} 31... e5 {[%clk 0:01:20.8]}
32. h5 {[%clk 0:00:57.1]} 32... g5 {[%clk 0:01:00.2]} 33. Bg6 {[%clk 0:00:54.8]}
33... Rc7 {[%clk 0:00:52.5]} 34. Ra3 {[%clk 0:00:53]} 34... Rb8 {[%clk
0:00:51.1]} 35. Rb3 {[%clk 0:00:52.8]} 35... b5 {[%clk 0:00:47.6]} 36. Bd3
{[%clk 0:00:50.1]} 36... Rcb7 {[%clk 0:00:30.7]} 37. axb5 {[%clk 0:00:49.8]}
37... axb5 {[%clk 0:00:31]} 38. Ra1 {[%clk 0:00:50.2]} 38... Be3 {[%clk
0:00:28.3]} 39. dxe5 {[%clk 0:00:48.3]} 39... fxe5 {[%clk 0:00:29.2]} 40. Ra6
{[%clk 0:00:48.7]} 40... b4 {[%clk 0:00:27.4]} 41. Rg6+ {[%clk 0:00:47.1]} 41...
Kf8 {[%clk 0:00:27.5]} 42. Rxh6 {[%clk 0:00:42.7]} 42... bxc3 {[%clk 0:00:27]}
43. Rh8+ {[%clk 0:00:39.5]} 43... Kg7 {[%clk 0:00:26.5]} 44. Rxb8 {[%clk
0:00:40.1]} 1-0

[Event "Late-Titled-Tuesday-Blitz-May-07-2024"]
[Site "Chess.com"]
[Date "2024.05.07"]
[Round "6"]
[White "Hasangatin_Ramil"]
[Black "KaydenTroffChess"]
[Result "0-1"]
[WhiteElo "2681"]
[BlackElo "2874"]
[TimeControl "180+1"]
[EndTime "15:06:21 PDT"]
[Termination "KaydenTroffChess won by resignation"]

1. e4 {[%clk 0:03:00.9]} 1... c5 {[%clk 0:02:57.9]} 2. Nf3 {[%clk 0:03:00.3]}
2... g6 {[%clk 0:02:58.5]} 3. Bc4 {[%clk 0:02:56.9]} 3... Bg7 {[%clk 0:02:57.9]}
4. O-O {[%clk 0:02:57.6]} 4... e6 {[%clk 0:02:58.3]} 5. d4 {[%clk 0:02:54.6]}
5... cxd4 {[%clk 0:02:57.3]} 6. Nxd4 {[%clk 0:02:55.5]} 6... a6 {[%clk
0:02:57.4]} 7. c3 {[%clk 0:02:49.5]} 7... Ne7 {[%clk 0:02:56.8]} 8. Bb3 {[%clk
0:02:48.6]} 8... O-O {[%clk 0:02:56.2]} 9. Re1 {[%clk 0:02:46.7]} 9... Nbc6
{[%clk 0:02:55.5]} 10. Be3 {[%clk 0:02:43.5]} 10... d5 {[%clk 0:02:55.3]} 11.
Nd2 {[%clk 0:02:40]} 11... Nxd4 {[%clk 0:02:46.6]} 12. Bxd4 {[%clk 0:02:38.8]}
12... Bxd4 {[%clk 0:02:24]} 13. cxd4 {[%clk 0:02:39.7]} 13... Bd7 {[%clk
0:02:16.1]} 14. e5 {[%clk 0:02:28.1]} 14... Rc8 {[%clk 0:02:13.3]} 15. Nf3
{[%clk 0:02:25.7]} 15... Bb5 {[%clk 0:02:08.8]} 16. Qd2 {[%clk 0:02:24.7]} 16...
Bc4 {[%clk 0:02:06]} 17. Bc2 {[%clk 0:02:20.1]} 17... Kg7 {[%clk 0:02:03.7]} 18.
b3 {[%clk 0:02:15.1]} 18... Bb5 {[%clk 0:02:01.9]} 19. a4 {[%clk 0:02:15.2]}
19... Bd7 {[%clk 0:02:00.8]} 20. Bd3 {[%clk 0:02:12.7]} 20... h6 {[%clk
0:01:49]} 21. b4 {[%clk 0:02:06.9]} 21... Rc7 {[%clk 0:01:32.4]} 22. h4 {[%clk
0:02:01.3]} 22... Nf5 {[%clk 0:01:27.7]} 23. b5 {[%clk 0:01:49.1]} 23... axb5
{[%clk 0:01:25]} 24. axb5 {[%clk 0:01:50]} 24... Nxh4 {[%clk 0:01:23.9]} 25. Nh2
{[%clk 0:01:38.3]} 25... Qg5 {[%clk 0:01:12.6]} 26. Qxg5 {[%clk 0:01:37.4]}
26... hxg5 {[%clk 0:01:13.5]} 27. Ra7 {[%clk 0:01:36.2]} 27... Rb8 {[%clk
0:01:06.8]} 28. Ng4 {[%clk 0:01:30.3]} 28... Nf5 {[%clk 0:01:04.4]} 29. Bxf5
{[%clk 0:01:28.8]} 29... gxf5 {[%clk 0:01:04.4]} 30. Nf6 {[%clk 0:01:29.3]}
30... Bxb5 {[%clk 0:01:04.1]} 31. g4 {[%clk 0:01:13.8]} 31... fxg4 {[%clk
0:01:00.5]} 32. Nxg4 {[%clk 0:01:10.2]} 32... Bd3 {[%clk 0:00:57.4]} 33. Nf6
{[%clk 0:00:54.5]} 33... Rc4 {[%clk 0:00:52.5]} 34. Rd1 {[%clk 0:00:54.7]} 34...
Be2 {[%clk 0:00:47.8]} 35. Rd2 {[%clk 0:00:52.7]} 35... Bf3 {[%clk 0:00:47.7]}
36. Kh2 {[%clk 0:00:52.9]} 36... Rh8+ {[%clk 0:00:43.7]} 37. Kg3 {[%clk
0:00:52.8]} 37... Rc3 {[%clk 0:00:44.4]} 38. Rxb7 {[%clk 0:00:43]} 38... Bh1+
{[%clk 0:00:37.6]} 39. Kg4 {[%clk 0:00:41.7]} 39... Kg6 {[%clk 0:00:38.2]} 40.
f3 {[%clk 0:00:16.5]} 40... Rxf3 {[%clk 0:00:29.1]} 0-1

[Event "Late-Titled-Tuesday-Blitz-May-07-2024"]
[Site "Chess.com"]
[Date "2024.05.07"]
[Round "6"]
[White "Durarbayli"]
[Black "SRob2003"]
[Result "1-0"]
[WhiteElo "2942"]
[BlackElo "2687"]
[TimeControl "180+1"]
[EndTime "15:06:21 PDT"]
[Termination "Durarbayli won on time"]

1. e4 {[%clk 0:03:00.9]} 1... c5 {[%clk 0:02:59.4]} 2. Nf3 {[%clk 0:03:00.6]}
2... d6 {[%clk 0:02:59.9]} 3. d4 {[%clk 0:03:01.2]} 3... cxd4 {[%clk 0:03:00.6]}
4. Nxd4 {[%clk 0:03:02.1]} 4... Nf6 {[%clk 0:03:00.9]} 5. Nc3 {[%clk 0:03:02.8]}
5... a6 {[%clk 0:03:01.4]} 6. h4 {[%clk 0:03:03.4]} 6... e5 {[%clk 0:03:01.1]}
7. Nb3 {[%clk 0:03:04]} 7... Be6 {[%clk 0:03:01.3]} 8. f4 {[%clk 0:03:02.6]}
8... exf4 {[%clk 0:03:01.4]} 9. Bxf4 {[%clk 0:03:03.5]} 9... Nc6 {[%clk
0:03:01.2]} 10. Qd2 {[%clk 0:03:03.7]} 10... Be7 {[%clk 0:03:00.3]} 11. O-O-O
{[%clk 0:03:03.4]} 11... Ne5 {[%clk 0:03:00.9]} 12. Nd4 {[%clk 0:02:55.5]} 12...
Qc7 {[%clk 0:02:55]} 13. Nf5 {[%clk 0:02:45.5]} 13... Bxf5 {[%clk 0:02:51.1]}
14. exf5 {[%clk 0:02:46.4]} 14... Rc8 {[%clk 0:02:47.8]} 15. h5 {[%clk 0:02:32]}
15... h6 {[%clk 0:02:46.7]} 16. Rh3 {[%clk 0:02:29.2]} 16... b5 {[%clk
0:02:39.9]} 17. a3 {[%clk 0:02:25.7]} 17... O-O {[%clk 0:02:31.2]} 18. Bxh6
{[%clk 0:02:14.8]} 18... gxh6 {[%clk 0:02:07.9]} 19. Qxh6 {[%clk 0:02:14.3]}
19... Neg4 {[%clk 0:01:54.3]} 20. Rg3 {[%clk 0:02:06.1]} 20... d5 {[%clk
0:01:52.2]} 21. Qe3 {[%clk 0:00:49.1]} 21... Kh7 {[%clk 0:01:24.8]} 22. Qf3
{[%clk 0:00:46.7]} 22... Nh2 {[%clk 0:00:51.5]} 23. Qd3 {[%clk 0:00:39.6]} 23...
d4 {[%clk 0:00:36.4]} 24. Nd5 {[%clk 0:00:23]} 24... Nxd5 {[%clk 0:00:11.4]} 25.
f6+ {[%clk 0:00:23.9]} 25... Kh8 {[%clk 0:00:11.8]} 26. fxe7 {[%clk 0:00:21.7]}
26... Qxe7 {[%clk 0:00:09.2]} 27. Qxd4+ {[%clk 0:00:12.6]} 27... Nf6 {[%clk
0:00:09.3]} 28. Bd3 {[%clk 0:00:06.8]} 28... Rfd8 {[%clk 0:00:07.9]} 29. Qf4
{[%clk 0:00:07.4]} 29... Qd6 {[%clk 0:00:04]} 30. Qh6+ {[%clk 0:00:06.8]} 1-0

[Event "Late-Titled-Tuesday-Blitz-May-07-2024"]
[Site "Chess.com"]
[Date "2024.05.07"]
[Round "6"]
[White "schondeln"]
[Black "Balla_Tamas"]
[Result "0-1"]
[WhiteElo "2358"]
[BlackElo "2527"]
[TimeControl "180+1"]
[EndTime "15:06:21 PDT"]
[Termination "Balla_Tamas won by checkmate"]

1. e4 {[%clk 0:03:00.9]} 1... c5 {[%clk 0:02:59.8]} 2. Nf3 {[%clk 0:03:00]} 2...
Nc6 {[%clk 0:02:59.8]} 3. Bb5 {[%clk 0:02:59.3]} 3... Nf6 {[%clk 0:02:59.8]} 4.
e5 {[%clk 0:02:56.6]} 4... Nd5 {[%clk 0:02:59.7]} 5. Nc3 {[%clk 0:02:57]} 5...
Nc7 {[%clk 0:02:57.8]} 6. Bd3 {[%clk 0:02:51.6]} 6... g6 {[%clk 0:02:50.1]} 7.
O-O {[%clk 0:02:50.9]} 7... Bg7 {[%clk 0:02:50.3]} 8. Re1 {[%clk 0:02:49.5]}
8... Ne6 {[%clk 0:02:49.3]} 9. Bb5 {[%clk 0:02:27.9]} 9... O-O {[%clk
0:02:46.3]} 10. d3 {[%clk 0:02:26.2]} 10... Ncd4 {[%clk 0:02:42.7]} 11. Bc4
{[%clk 0:02:20.8]} 11... a6 {[%clk 0:02:40.6]} 12. a4 {[%clk 0:02:19.8]} 12...
b6 {[%clk 0:02:28.2]} 13. Bd5 {[%clk 0:02:19.3]} 13... Rb8 {[%clk 0:02:25.6]}
14. Nxd4 {[%clk 0:02:09.4]} 14... Nxd4 {[%clk 0:02:21.3]} 15. Bf4 {[%clk
0:02:08.4]} 15... e6 {[%clk 0:02:19.7]} 16. Be4 {[%clk 0:02:03.6]} 16... b5
{[%clk 0:02:17.5]} 17. axb5 {[%clk 0:02:03]} 17... axb5 {[%clk 0:02:18.4]} 18.
Ne2 {[%clk 0:01:58]} 18... d5 {[%clk 0:01:52.7]} 19. Nxd4 {[%clk 0:01:18.8]}
19... cxd4 {[%clk 0:01:39.3]} 20. Bf3 {[%clk 0:01:18.7]} 20... Bb7 {[%clk
0:01:28.3]} 21. Qd2 {[%clk 0:01:17.9]} 21... Qb6 {[%clk 0:01:24.9]} 22. Qa5
{[%clk 0:01:13.5]} 22... Qc6 {[%clk 0:01:22.5]} 23. Rec1 {[%clk 0:01:07.4]}
23... Ra8 {[%clk 0:01:21.1]} 24. Qd2 {[%clk 0:01:07.1]} 24... Qc7 {[%clk
0:01:15.5]} 25. Qb4 {[%clk 0:00:21]} 25... Rxa1 {[%clk 0:00:35.6]} 26. Rxa1
{[%clk 0:00:21.9]} 26... Bxe5 {[%clk 0:00:31.6]} 27. Bxe5 {[%clk 0:00:22.6]}
27... Qxe5 {[%clk 0:00:32.5]} 28. Qxb5 {[%clk 0:00:22.1]} 28... Rb8 {[%clk
0:00:31.9]} 29. Qb4 {[%clk 0:00:14.6]} 29... Bc6 {[%clk 0:00:27.8]} 30. Qc5
{[%clk 0:00:12.4]} 30... Be8 {[%clk 0:00:24.6]} 31. b3 {[%clk 0:00:12.4]} 31...
h5 {[%clk 0:00:15.4]} 32. h3 {[%clk 0:00:12]} 32... Kg7 {[%clk 0:00:14.5]} 33.
Ra4 {[%clk 0:00:11.7]} 33... Bxa4 {[%clk 0:00:14.5]} 34. bxa4 {[%clk 0:00:11.2]}
34... Rb1+ {[%clk 0:00:15.1]} 35. Bd1 {[%clk 0:00:10]} 35... Rxd1# {[%clk
0:00:15.5]} 0-1

[Event "Late-Titled-Tuesday-Blitz-May-07-2024"]
[Site "Chess.com"]
[Date "2024.05.07"]
[Round "6"]
[White "Lennis93"]
[Black "Blackmind96"]
[Result "1/2-1/2"]
[WhiteElo "2737"]
[BlackElo "2891"]
[TimeControl "180+1"]
[EndTime "15:06:24 PDT"]
[Termination "Game drawn by repetition"]

1. d4 {[%clk 0:03:00.9]} 1... Nf6 {[%clk 0:02:56.9]} 2. Nf3 {[%clk 0:03:01.4]}
2... e6 {[%clk 0:02:56.6]} 3. c4 {[%clk 0:03:01.9]} 3... Bb4+ {[%clk 0:02:55.3]}
4. Bd2 {[%clk 0:03:01.8]} 4... Qe7 {[%clk 0:02:55.6]} 5. Qc2 {[%clk 0:03:01]}
5... Bxd2+ {[%clk 0:02:46.2]} 6. Nbxd2 {[%clk 0:03:01.9]} 6... d6 {[%clk
0:02:45.8]} 7. e4 {[%clk 0:03:01.4]} 7... e5 {[%clk 0:02:46.1]} 8. d5 {[%clk
0:03:01.5]} 8... a5 {[%clk 0:02:45.8]} 9. h3 {[%clk 0:03:00.7]} 9... Na6 {[%clk
0:02:43.4]} 10. a3 {[%clk 0:02:25.2]} 10... O-O {[%clk 0:02:40.8]} 11. Be2
{[%clk 0:02:25.3]} 11... Bd7 {[%clk 0:02:38.7]} 12. O-O {[%clk 0:02:24.6]} 12...
a4 {[%clk 0:02:38.7]} 13. Nb1 {[%clk 0:02:23.2]} 13... Nc5 {[%clk 0:02:37.8]}
14. Nc3 {[%clk 0:02:23.1]} 14... Nh5 {[%clk 0:02:33.6]} 15. Rae1 {[%clk
0:02:01.1]} 15... Nf4 {[%clk 0:01:41.5]} 16. Kh2 {[%clk 0:02:00.9]} 16... f5
{[%clk 0:01:40]} 17. exf5 {[%clk 0:01:20.8]} 17... Bxf5 {[%clk 0:01:39]} 18. Qd1
{[%clk 0:01:21.5]} 18... Rf6 {[%clk 0:01:25.1]} 19. Ng1 {[%clk 0:01:19.6]} 19...
Raf8 {[%clk 0:01:01.3]} 20. Nxa4 {[%clk 0:00:59.2]} 20... Nxa4 {[%clk
0:00:49.2]} 21. Qxa4 {[%clk 0:00:58.6]} 21... Rg6 {[%clk 0:00:38]} 22. g3 {[%clk
0:00:57.9]} 22... Bxh3 {[%clk 0:00:23]} 23. Nxh3 {[%clk 0:00:53.3]} 23... Rh6
{[%clk 0:00:16.4]} 24. gxf4 {[%clk 0:00:53.3]} 24... Rxf4 {[%clk 0:00:14.8]} 25.
Qb3 {[%clk 0:00:52.9]} 25... Rfh4 {[%clk 0:00:14.4]} 26. Rg1 {[%clk 0:00:50.3]}
26... Qf6 {[%clk 0:00:11.5]} 27. Ref1 {[%clk 0:00:25.2]} 27... Qf4+ {[%clk
0:00:08.8]} 28. Kg2 {[%clk 0:00:24.3]} 28... Rxh3 {[%clk 0:00:07.7]} 29. Qxh3
{[%clk 0:00:23.6]} 29... Rxh3 {[%clk 0:00:08.6]} 30. Kxh3 {[%clk 0:00:23.5]}
30... Qh6+ {[%clk 0:00:09.3]} 31. Kg2 {[%clk 0:00:21.2]} 31... Qg5+ {[%clk
0:00:08.9]} 32. Kh3 {[%clk 0:00:21.4]} 32... Qh6+ {[%clk 0:00:05.8]} 33. Kg3
{[%clk 0:00:21.3]} 33... Qf4+ {[%clk 0:00:05.5]} 34. Kg2 {[%clk 0:00:21.1]}
34... Qg5+ {[%clk 0:00:04.7]} 35. Kh2 {[%clk 0:00:21.4]} 35... Qh4+ {[%clk
0:00:03.6]} 36. Kg2 {[%clk 0:00:21.1]} 36... Qg5+ {[%clk 0:00:04.3]} 1/2-1/2